lending/lending_fUSD_20240110
["ID","MTS","AMOUNT","RATE_DAILY","PERIOD"]
[311049233,1704889866201,-540.53078949,0.0003041,2]
[311049234,1704889866210,-500.0,0.0003041,2]
[311049235,1704889866220,-1743.65,0.0003041,2]
[311049236,1704889866230,-1374.17,0.0003041,2]
[311049237,1704889866240,-958.64,0.0003041,2]
[311049238,1704889866250,-500.0,0.0003041,2]
[311049239,1704889866260,-500.0,0.0003041,2]
[311049240,1704889866269,-500.0,0.0003041,2]
[311049241,1704889866279,-500.0,0.0003041,2]
[311049242,1704889866288,-3259.29,0.0003041,2]
[311049243,1704889866297,-626.26,0.0003041,2]
[311049244,1704889866307,-1937.84,0.0003041,2]
[311049245,1704889866316,-500.0,0.0003041,2]
[311049246,1704889866326,-500.0,0.0003041,2]
[311049247,1704889866335,-500.0,0.0003041,2]
[311049248,1704889866345,-500.0,0.0003041,2]
[311049249,1704889866355,-500.0,0.0003041,2]
[311049250,1704889866365,-500.0,0.0003041,2]
[311049251,1704889866374,-500.0,0.0003041,2]
[311049252,1704889866384,-500.0,0.0003041,2]
[311049253,1704889866395,-500.0,0.0003041,2]
[311049254,1704889866405,-757.11,0.0003041,2]
[311049255,1704889866414,-151.0,0.0003041,7]
[311049256,1704889866424,-151.0,0.0003041,7]
[311049257,1704889866434,-151.0,0.0003041,7]
[311049258,1704889866443,-163.684056,0.0003041,7]
[311049259,1704889866453,-163.684056,0.0003041,7]
[311049260,1704889866463,-163.684056,0.0003041,7]
[311049261,1704889866473,-163.684056,0.0003041,7]
[311049262,1704889866483,-163.684056,0.0003041,7]
[311049263,1704889866492,-163.684056,0.0003041,7]
[311049264,1704889866503,-168.839658,0.0003041,7]
[311049265,1704889866513,-168.839658,0.0003041,7]
[311049266,1704889866522,-168.839658,0.0003041,7]
[311049267,1704889866533,-168.839658,0.0003041,7]
[311049268,1704889866543,-168.839658,0.0003041,7]
[311049269,1704889866553,-168.839658,0.0003041,7]
[311049270,1704889866562,-211.250233,0.0003041,7]
[311049271,1704889866572,-151.0,0.0003041,7]
[311049272,1704889866583,-151.0,0.0003041,7]
[311049273,1704889866592,-151.0,0.0003041,7]
[311049274,1704889866602,-151.0,0.0003041,7]
[311049275,1704889866612,-151.0,0.0003041,7]
[311049276,1704889866621,-151.0,0.0003041,7]
[311049277,1704889866631,-151.0,0.0003041,7]
[311049278,1704889866641,-151.0,0.0003041,7]
[311049279,1704889866657,-151.0,0.0003041,7]
[311049280,1704889866667,-3652.725796,0.0003041,7]
[311049281,1704889866677,-3652.725796,0.0003041,7]
[311049282,1704889866687,-3652.725796,0.0003041,7]
[311049283,1704889866696,-3652.725796,0.0003041,7]
[311049284,1704889866706,-3652.725796,0.0003041,7]
[311049285,1704889866716,-3652.725796,0.0003041,7]
[311049286,1704889866725,-151.0,0.0003041,7]
[311049287,1704889866735,-151.0,0.0003041,7]
[311049288,1704889866745,-151.0,0.0003041,7]
[311049289,1704889866755,-151.0,0.0003041,7]
[311049290,1704889866764,-280.69325,0.0003041,7]
[311049291,1704889866774,-151.0,0.0003041,7]
[311049292,1704889866783,-151.0,0.0003041,7]
[311049293,1704889866793,-151.0,0.0003041,7]
[311049294,1704889866802,-162.955583,0.0003041,7]
[311049295,1704889866811,-151.0,0.0003041,7]
[311049296,1704889866820,-151.0,0.0003041,7]
[311049297,1704889866830,-151.0,0.0003041,7]
[311049298,1704889866840,-157.930629,0.0003041,7]
[311049299,1704889866849,-500.0,0.00030411,2]
[311049300,1704889866859,-252.99454732,0.00030412,2]
[311049301,1704889866869,-150.0,0.00030415,2]
[311049302,1704889866878,-150.0,0.00030427,2]
[311049303,1704889866887,-150.0,0.00030427,2]
[311049304,1704889866901,-500.0,0.00030428,2]
[311049305,1704889866910,-388.66415949,0.00030433,7]
[311049306,1704889866920,-150.0,0.00030464,2]
[311049307,1704889866929,-150.0,0.00030467,2]
[311049308,1704889866938,-500.0,0.00030472,2]
[311049309,1704889866948,-150.0,0.00030479,2]
[311049310,1704889866957,-247.31,0.00030494,2]
[311049311,1704889866967,-152.07316614,0.000305,2]
[311049312,1704889866976,-1500.0,0.000305,5]
[311049313,1704889866985,-150.0,0.00030506,2]
[311049314,1704889866994,-150.0,0.00030512,2]
[311049315,1704889867004,-500.0,0.00030516,2]
[311049316,1704889867013,-13010.39597762,0.0003052,2]
[311049317,1704889867023,-150.0,0.0003053,2]
[311049318,1704889867031,-1640.49442625,0.00030534,2]
[311049319,1704889867041,-150.0,0.00030534,2]
[311049320,1704889867050,-150.0,0.0003054,2]
[311049321,1704889867059,-150.0,0.00030545,2]
[311049322,1704889867069,-150.0,0.00030573,2]
[311049323,1704889867078,-151.42554748,0.00030575,2]
[311049324,1704889867087,-1500.0,0.00030578,2]
[311049325,1704889867097,-150.0,0.00030583,2]
[311049326,1704889867106,-163.684056,0.00030591,7]
[311049327,1704889867116,-163.684056,0.00030591,7]
[311049328,1704889867126,-150.0,0.00030591,2]
[311049329,1704889867136,-150.0,0.00030593,2]
[311049330,1704889867149,-163.1,0.00030594,2]
[311049331,1704889867160,-205.0,0.00030598,6]
[311049332,1704889867170,-150.0,0.000306,2]
[311049333,1704889867180,-150.0,0.00030605,2]
[311049334,1704889867190,-324.20687696,0.00030616,2]
[311049335,1704889867200,-150.0,0.0003062,2]
[311049336,1704889867210,-150.0,0.00030631,2]
[311049337,1704889867219,-247.31,0.00030646,2]
[311049338,1704889867229,-150.0,0.00030666,2]
[311049339,1704889867238,-500.0,0.00030666,2]
[311049340,1704889867252,-5606.63980878,0.00030671,2]
[311049341,1704889867262,-559.543572,0.00030671,2]
[311049342,1704889867271,-200.0,0.00030674,7]
[311049343,1704889867281,-200.0,0.00030674,7]
[311049344,1704889867292,-1305.2,0.00030684,2]
[311049345,1704889867303,-1000.0,0.00030684,2]
[311049346,1704889867313,-226.26000113,0.00030684,2]
[311049347,1704889867324,-562.53,0.00030684,2]
[311049348,1704889867334,-500.0,0.00030684,2]
[311049349,1704889867345,-789.98,0.00030684,2]
[311049350,1704889867355,-500.0,0.00030684,2]
[311049351,1704889867365,-500.0,0.00030684,2]
[311049352,1704889867376,-500.0,0.00030684,2]
[311049353,1704889867386,-500.0,0.00030684,2]
[311049354,1704889867399,-500.0,0.00030684,2]
[311049355,1704889867409,-500.0,0.00030684,2]
[311049356,1704889867419,-500.0,0.00030684,2]
[311049357,1704889867429,-821.72,0.00030684,2]
[311049358,1704889867439,-630.21,0.00030684,2]
[311049359,1704889867449,-500.0,0.00030684,2]
[311049360,1704889867460,-500.0,0.00030684,2]
[311049361,1704889867470,-729.72,0.00030684,2]
[311049362,1704889867480,-500.0,0.00030684,2]
[311049363,1704889867490,-373.58,0.00030684,2]
[311049364,1704889867500,-530.0099628,0.00030684,2]
[311049365,1704889867510,-649.95,0.00030684,2]
[311049366,1704889867520,-500.0,0.00030684,2]
[311049367,1704889867531,-500.0,0.00030684,2]
[311049368,1704889867541,-500.0,0.00030684,2]
[311049369,1704889867551,-500.0,0.00030684,2]
[311049370,1704889867561,-1431.42,0.00030684,2]
[311049371,1704889867571,-500.0,0.00030684,2]
[311049372,1704889867582,-500.0,0.00030684,2]
[311049373,1704889867592,-500.0,0.00030684,2]
[311049374,1704889867602,-500.0,0.00030684,2]
[311049375,1704889867613,-500.0,0.00030684,2]
[311049376,1704889867623,-500.0,0.00030684,2]
[311049377,1704889867633,-500.0,0.00030684,2]
[311049378,1704889867646,-500.0,0.00030684,2]
[311049379,1704889867656,-500.0,0.00030684,2]
[311049380,1704889867666,-769.7,0.00030684,2]
[311049381,1704889867677,-500.0,0.00030684,2]
[311049382,1704889867687,-500.0,0.00030684,2]
[311049383,1704889867698,-501.42,0.00030684,2]
[311049384,1704889867709,-865.48,0.00030684,2]
[311049385,1704889867719,-572.81,0.00030684,2]
[311049386,1704889867729,-500.0,0.00030684,2]
[311049387,1704889867739,-500.0,0.00030684,2]
[311049388,1704889867751,-500.0,0.00030684,2]
[311049389,1704889867761,-624.41,0.00030684,2]
[311049390,1704889867772,-500.0,0.00030684,2]
[311049391,1704889867782,-500.0,0.00030684,2]
[311049392,1704889867793,-500.0,0.00030684,2]
[311049393,1704889867803,-842.57,0.00030684,2]
[311049394,1704889867813,-500.0,0.00030684,2]
[311049395,1704889867823,-500.0,0.00030684,2]
[311049396,1704889867833,-500.0,0.00030684,2]
[311049397,1704889867844,-500.0,0.00030684,2]
[311049398,1704889867854,-500.0,0.00030684,2]
[311049399,1704889867864,-500.0,0.00030684,2]
[311049400,1704889867875,-500.0,0.00030684,2]
[311049401,1704889867885,-833.19,0.00030684,2]
[311049402,1704889867898,-717.25,0.00030684,2]
[311049403,1704889867909,-500.0,0.00030684,2]
[311049404,1704889867919,-624.99,0.00030684,2]
[311049405,1704889867929,-500.0,0.00030684,2]
[311049406,1704889867941,-549.93715188,0.00030684,2]
[311049407,1704889867951,-539.47,0.00030684,2]
[311049408,1704889867961,-500.0,0.00030684,2]
[311049409,1704889867971,-500.0,0.00030684,2]
[311049410,1704889867981,-500.0,0.00030684,2]
[311049411,1704889867991,-500.0,0.00030684,2]
[311049412,1704889868001,-500.0,0.00030684,2]
[311049413,1704889868011,-500.0,0.00030684,2]
[311049414,1704889868021,-794.84,0.00030684,2]
[311049415,1704889868031,-500.0,0.00030684,2]
[311049416,1704889868041,-524.0,0.00030684,2]
[311049417,1704889868051,-564.82,0.00030684,2]
[311049418,1704889868061,-849.78,0.00030684,2]
[311049419,1704889868071,-500.0,0.00030684,2]
[311049420,1704889868080,-500.0,0.00030684,2]
[311049421,1704889868090,-500.0,0.00030684,2]
[311049422,1704889868100,-500.0,0.00030684,2]
[311049423,1704889868111,-500.0,0.00030684,2]
[311049424,1704889868121,-691.91,0.00030684,2]
[311049425,1704889868131,-500.0,0.00030684,2]
[311049426,1704889868141,-500.0,0.00030684,2]
[311049427,1704889868155,-500.0,0.00030684,2]
[311049428,1704889868165,-500.0,0.00030684,2]
[311049429,1704889868175,-500.0,0.00030684,2]
[311049430,1704889868185,-1055.72,0.00030684,2]
[311049431,1704889868195,-678.29,0.00030684,2]
[311049432,1704889868205,-380.88,0.00030684,2]
[311049433,1704889868215,-500.0,0.00030684,2]
[311049434,1704889868226,-500.0,0.00030684,2]
[311049435,1704889868236,-500.0,0.00030684,2]
[311049436,1704889868246,-500.0,0.00030684,2]
[311049437,1704889868256,-592.15,0.00030684,2]
[311049438,1704889868267,-500.0,0.00030684,2]
[311049439,1704889868277,-500.0,0.00030684,2]
[311049440,1704889868287,-500.0,0.00030684,2]
[311049441,1704889868297,-500.0,0.00030684,2]
[311049442,1704889868307,-500.0,0.00030684,2]
[311049443,1704889868318,-500.0,0.00030684,2]
[311049444,1704889868328,-500.0,0.00030684,2]
[311049445,1704889868338,-500.0,0.00030684,2]
[311049446,1704889868348,-500.0,0.00030684,2]
[311049447,1704889868358,-512.35,0.00030684,2]
[311049448,1704889868368,-258.33438285,0.00030684,2]
[311049449,1704889868378,-500.0,0.00030684,2]
[311049450,1704889868388,-1485.01,0.00030684,2]
[311049451,1704889868400,-500.0,0.00030684,2]
[311049452,1704889868411,-500.0,0.00030684,2]
[311049453,1704889868421,-500.0,0.00030684,2]
[311049454,1704889868431,-500.0,0.00030684,2]
[311049455,1704889868441,-500.0,0.00030684,2]
[311049456,1704889868451,-500.0,0.00030684,2]
[311049457,1704889868461,-500.0,0.00030684,2]
[311049458,1704889868471,-500.0,0.00030684,2]
[311049459,1704889868481,-580.7,0.00030684,2]
[311049460,1704889868491,-1058.01,0.00030684,2]
[311049461,1704889868501,-954.7,0.00030684,2]
[311049462,1704889868511,-749.97,0.00030684,2]
[311049463,1704889868521,-500.0,0.00030684,2]
[311049464,1704889868531,-500.0,0.00030684,2]
[311049465,1704889868541,-500.0,0.00030684,2]
[311049466,1704889868551,-630.7,0.00030684,2]
[311049467,1704889868562,-500.0,0.00030684,2]
[311049468,1704889868572,-500.0,0.00030684,2]
[311049469,1704889868582,-500.0,0.00030684,2]
[311049470,1704889868592,-500.0,0.00030684,2]
[311049471,1704889868602,-500.0,0.00030684,2]
[311049472,1704889868612,-834.07,0.00030684,2]
[311049473,1704889868622,-500.0,0.00030684,2]
[311049474,1704889868632,-1172.81,0.00030684,2]
[311049475,1704889868642,-500.0,0.00030684,2]
[311049476,1704889868653,-500.0,0.00030684,2]
[311049477,1704889868663,-500.0,0.00030684,2]
[311049478,1704889868673,-969.67,0.00030684,2]
[311049479,1704889868686,-500.0,0.00030684,2]
[311049480,1704889868696,-516.06324998,0.00030684,2]
[311049481,1704889868706,-504.6,0.00030684,2]
[311049482,1704889868716,-853.19,0.00030684,2]
[311049483,1704889868726,-500.0,0.00030684,2]
[311049484,1704889868737,-500.0,0.00030684,2]
[311049485,1704889868746,-675.48,0.00030684,2]
[311049486,1704889868756,-855.92,0.00030684,2]
[311049487,1704889868767,-1032.1,0.00030684,2]
[311049488,1704889868777,-914.55,0.00030684,2]
[311049489,1704889868786,-654.47,0.00030684,2]
[311049490,1704889868796,-641.19,0.00030684,2]
[311049491,1704889868806,-500.0,0.00030684,2]
[311049492,1704889868816,-500.0,0.00030684,2]
[311049493,1704889868826,-758.86,0.00030684,2]
[311049494,1704889868836,-500.0,0.00030684,2]
[311049495,1704889868846,-662.17,0.00030684,2]
[311049496,1704889868856,-500.0,0.00030684,2]
[311049497,1704889868866,-307.80205433,0.00030684,2]
[311049498,1704889868876,-500.0,0.00030684,2]
[311049499,1704889868886,-500.0,0.00030684,2]
[311049500,1704889868896,-500.0,0.00030684,2]
[311049501,1704889868906,-500.0,0.00030684,2]
[311049502,1704889868917,-500.0,0.00030684,2]
[311049503,1704889868927,-550.16145307,0.00030684,2]
[311049504,1704889868936,-642.49,0.00030684,2]
[311049505,1704889868946,-581.45,0.00030684,2]
[311049506,1704889868957,-336.50256151,0.00030684,2]
[311049507,1704889868967,-500.0,0.00030684,2]
[311049508,1704889868977,-500.0,0.00030684,2]
[311049509,1704889868987,-500.0,0.00030684,2]
[311049510,1704889868997,-500.0,0.00030684,2]
[311049511,1704889869007,-864.53,0.00030684,2]
[311049512,1704889869018,-500.0,0.00030684,2]
[311049513,1704889869028,-1435.24,0.00030684,2]
[311049514,1704889869038,-500.0,0.00030684,2]
[311049515,1704889869047,-500.0,0.00030684,2]
[311049516,1704889869057,-803.66,0.00030684,2]
[311049517,1704889869068,-500.0,0.00030684,2]
[311049518,1704889869078,-500.0,0.00030684,2]
[311049519,1704889869088,-500.0,0.00030684,2]
[311049520,1704889869098,-500.0,0.00030684,2]
[311049521,1704889869108,-500.0,0.00030684,2]
[311049522,1704889869118,-500.0,0.00030684,2]
[311049523,1704889869128,-500.0,0.00030684,2]
[311049524,1704889869138,-602.17,0.00030684,2]
[311049525,1704889869149,-513.9435744,0.00030684,2]
[311049526,1704889869159,-895.58,0.00030684,2]
[311049527,1704889869169,-412.47461585,0.00030684,2]
[311049528,1704889869179,-863.68,0.00030684,2]
[311049529,1704889869189,-500.0,0.00030684,2]
[311049530,1704889869199,-500.0,0.00030684,2]
[311049531,1704889869209,-521.69,0.00030684,2]
[311049532,1704889869219,-500.0,0.00030684,2]
[311049533,1704889869229,-500.0,0.00030684,2]
[311049534,1704889869239,-748.95,0.00030684,2]
[311049535,1704889869249,-500.0,0.00030684,2]
[311049536,1704889869260,-679.29,0.00030684,2]
[311049537,1704889869271,-500.0,0.00030684,2]
[311049538,1704889869282,-632.72,0.00030684,2]
[311049539,1704889869293,-809.84,0.00030684,2]
[311049540,1704889869305,-1190.9,0.00030684,2]
[311049541,1704889869316,-924.2,0.00030684,2]
[311049542,1704889869327,-736.17,0.00030684,2]
[311049543,1704889869339,-500.0,0.00030684,2]
[311049544,1704889869354,-1153.88,0.00030684,2]
[311049545,1704889869364,-500.0,0.00030684,2]
[311049546,1704889869375,-1430.8,0.00030684,2]
[311049547,1704889869386,-952.48,0.00030684,2]
[311049548,1704889869401,-500.0,0.00030684,2]
[311049549,1704889869412,-500.0,0.00030684,2]
[311049550,1704889869422,-1431.71,0.00030684,2]
[311049551,1704889869432,-500.0,0.00030684,2]
[311049552,1704889869443,-588.51,0.00030684,2]
[311049553,1704889869454,-431.41467442,0.00030684,2]
[311049554,1704889869465,-500.0,0.00030684,2]
[311049555,1704889869476,-500.0,0.00030684,2]
[311049556,1704889869486,-907.53,0.00030684,2]
[311049557,1704889869497,-384.01096475,0.00030684,2]
[311049558,1704889869507,-500.0,0.00030684,2]
[311049559,1704889869839,-585.0,0.00030684,2]
[311049560,1704889869850,-778.49,0.00030684,2]
[311049561,1704889869861,-881.3,0.00030684,2]
[311049562,1704889869870,-679.75,0.00030684,2]
[311049563,1704889869879,-500.0,0.00030684,2]
[311049564,1704889869888,-526.76,0.00030684,2]
[311049565,1704889869900,-867.28,0.00030684,2]
[311049566,1704889869909,-685.4,0.00030684,2]
[311049567,1704889869918,-500.0,0.00030684,2]
[311049568,1704889869928,-500.0,0.00030684,2]
[311049569,1704889869937,-500.0,0.00030684,2]
[311049570,1704889869946,-720.0,0.00030684,2]
[311049571,1704889869955,-735.37,0.00030684,2]
[311049572,1704889869965,-500.0,0.00030684,2]
[311049573,1704889869975,-500.0,0.00030684,2]
[311049574,1704889869985,-850.19,0.00030684,2]
[311049575,1704889869994,-500.0,0.00030684,2]
[311049576,1704889870003,-755.08,0.00030684,2]
[311049577,1704889870012,-500.0,0.00030684,2]
[311049578,1704889870022,-1729.92,0.00030684,2]
[311049579,1704889870031,-500.0,0.00030684,2]
[311049580,1704889870040,-500.0,0.00030684,2]
[311049581,1704889870050,-500.0,0.00030684,2]
[311049582,1704889870061,-500.0,0.00030684,2]
[311049583,1704889870070,-500.0,0.00030684,2]
[311049584,1704889870080,-1000.0,0.00030684,2]
[311049585,1704889870090,-500.0,0.00030684,2]
[311049586,1704889870099,-1075.29,0.00030684,2]
[311049587,1704889870108,-500.0,0.00030684,2]
[311049588,1704889870118,-500.0,0.00030684,2]
[311049589,1704889870127,-768.21,0.00030684,2]
[311049590,1704889870137,-1164.78,0.00030684,2]
[311049591,1704889870148,-677.83,0.00030684,2]
[311049592,1704889870158,-500.0,0.00030684,2]
[311049593,1704889870167,-649.5,0.00030684,2]
[311049594,1704889870176,-500.0,0.00030684,2]
[311049595,1704889870185,-1344.87,0.00030684,2]
[311049596,1704889870194,-1029.12,0.00030684,2]
[311049597,1704889870203,-541.66,0.00030684,2]
[311049598,1704889870213,-500.0,0.00030684,2]
[311049599,1704889870222,-500.0,0.00030684,2]
[311049600,1704889870231,-670.72,0.00030684,2]
[311049601,1704889870240,-509.98,0.00030684,2]
[311049602,1704889870250,-652.81,0.00030684,2]
[311049603,1704889870260,-1260.23,0.00030684,2]
[311049604,1704889870269,-547.11,0.00030684,2]
[311049605,1704889870279,-500.0,0.00030684,2]
[311049606,1704889870289,-500.0,0.00030684,2]
[311049607,1704889870298,-716.82,0.00030684,2]
[311049608,1704889870307,-431.62464265,0.00030684,2]
[311049609,1704889870317,-854.87,0.00030684,2]
[311049610,1704889870326,-500.0,0.00030684,2]
[311049611,1704889870336,-1006.48,0.00030684,2]
[311049612,1704889870346,-611.38,0.00030684,2]
[311049613,1704889870355,-994.34,0.00030684,2]
[311049614,1704889870364,-668.89,0.00030684,2]
[311049615,1704889870374,-500.0,0.00030684,2]
[311049616,1704889870383,-1022.6,0.00030684,2]
[311049617,1704889870392,-500.0,0.00030684,2]
[311049618,1704889870406,-825.44,0.00030684,2]
[311049619,1704889870415,-500.0,0.00030684,2]
[311049620,1704889870425,-500.0,0.00030684,2]
[311049621,1704889870435,-883.46,0.00030684,2]
[311049622,1704889870445,-1122.15,0.00030684,2]
[311049623,1704889870455,-500.0,0.00030684,2]
[311049624,1704889870465,-893.01,0.00030684,2]
[311049625,1704889870475,-500.0,0.00030684,2]
[311049626,1704889870485,-500.0,0.00030684,2]
[311049627,1704889870496,-605.43,0.00030684,2]
[311049628,1704889870505,-500.0,0.00030684,2]
[311049629,1704889870515,-758.98,0.00030684,2]
[311049630,1704889870525,-736.78,0.00030684,2]
[311049631,1704889870534,-1205.85,0.00030684,2]
[311049632,1704889870543,-1329.19,0.00030684,2]
[311049633,1704889870553,-481.74045622,0.00030684,2]
[311049634,1704889870563,-500.0,0.00030684,2]
[311049635,1704889870573,-799.07,0.00030684,2]
[311049636,1704889870582,-561.87,0.00030684,2]
[311049637,1704889870592,-553.43,0.00030684,2]
[311049638,1704889870602,-500.0,0.00030684,2]
[311049639,1704889870611,-500.0,0.00030684,2]
[311049640,1704889870621,-694.76,0.00030684,2]
[311049641,1704889870631,-617.06,0.00030684,2]
[311049642,1704889870641,-500.0,0.00030684,2]
[311049643,1704889870655,-693.65,0.00030684,2]
[311049644,1704889870664,-552.3,0.00030684,2]
[311049645,1704889870673,-567.33,0.00030684,2]
[311049646,1704889870683,-828.91,0.00030684,2]
[311049647,1704889870691,-985.6,0.00030684,2]
[311049648,1704889870701,-1115.42,0.00030684,2]
[311049649,1704889870711,-609.52,0.00030684,2]
[311049650,1704889870720,-1150.67,0.00030684,2]
[311049651,1704889870730,-1062.08,0.00030684,2]
[311049652,1704889870739,-500.0,0.00030684,2]
[311049653,1704889870749,-847.77,0.00030684,2]
[311049654,1704889870758,-500.0,0.00030684,2]
[311049655,1704889870768,-995.33,0.00030684,2]
[311049656,1704889870777,-1009.26,0.00030684,2]
[311049657,1704889870787,-1492.85,0.00030684,2]
[311049658,1704889870796,-575.14,0.00030684,2]
[311049659,1704889870806,-1053.94,0.00030684,2]
[311049660,1704889870815,-500.0,0.00030684,2]
[311049661,1704889870824,-1131.33,0.00030684,2]
[311049662,1704889870833,-571.54,0.00030684,2]
[311049663,1704889870842,-1127.79,0.00030684,2]
[311049664,1704889870852,-500.0,0.00030684,2]
[311049665,1704889870861,-500.0,0.00030684,2]
[311049666,1704889870870,-954.83,0.00030684,2]
[311049667,1704889870880,-1368.46,0.00030684,2]
[311049668,1704889870889,-500.0,0.00030684,2]
[311049669,1704889870903,-500.0,0.00030684,2]
[311049670,1704889870912,-981.86,0.00030684,2]
[311049671,1704889870921,-616.24,0.00030684,2]
[311049672,1704889870931,-500.0,0.00030684,2]
[311049673,1704889870940,-550.16,0.00030684,2]
[311049674,1704889870950,-641.53,0.00030684,2]
[311049675,1704889870959,-500.0,0.00030684,2]
[311049676,1704889870969,-500.0,0.00030684,2]
[311049677,1704889870978,-500.0,0.00030684,2]
[311049678,1704889870987,-782.63,0.00030684,2]
[311049679,1704889870996,-708.63,0.00030684,2]
[311049680,1704889871006,-332.71,0.00030684,2]
[311049681,1704889871015,-500.0,0.00030684,2]
[311049682,1704889871024,-733.24,0.00030684,2]
[311049683,1704889871034,-1855.75,0.00030684,2]
[311049684,1704889871043,-532.5,0.00030684,2]
[311049685,1704889871052,-500.0,0.00030684,2]
[311049686,1704889871062,-500.0,0.00030684,2]
[311049687,1704889871071,-721.83,0.00030684,2]
[311049688,1704889871081,-603.69,0.00030684,2]
[311049689,1704889871090,-533.71595035,0.00030684,2]
[311049690,1704889871099,-500.0,0.00030684,2]
[311049691,1704889871108,-910.15,0.00030684,2]
[311049692,1704889871118,-500.0,0.00030684,2]
[311049693,1704889871127,-1074.34,0.00030684,2]
[311049694,1704889871136,-500.0,0.00030684,2]
[311049695,1704889871149,-688.15,0.00030684,2]
[311049696,1704889871159,-1408.84,0.00030684,2]
[311049697,1704889871169,-992.67,0.00030684,2]
[311049698,1704889871178,-417.44941853,0.00030684,2]
[311049699,1704889871188,-503.83954388,0.00030684,2]
[311049700,1704889871197,-674.19,0.00030684,2]
[311049701,1704889871207,-623.83,0.00030684,2]
[311049702,1704889871216,-500.0,0.00030684,2]
[311049703,1704889871225,-500.0,0.00030684,2]
[311049704,1704889871235,-568.67,0.00030684,2]
[311049705,1704889871245,-1308.25,0.00030684,2]
[311049706,1704889871254,-1132.9,0.00030684,2]
[311049707,1704889871263,-500.0,0.00030684,2]
[311049708,1704889871273,-500.0,0.00030684,2]
[311049709,1704889871282,-500.0,0.00030684,2]
[311049710,1704889871292,-500.0,0.00030684,2]
[311049711,1704889871302,-500.0,0.00030684,2]
[311049712,1704889871311,-500.0,0.00030684,2]
[311049713,1704889871321,-509.25799764,0.00030684,2]
[311049714,1704889871331,-619.57,0.00030684,2]
[311049715,1704889871341,-157.4331218,0.00030684,2]
[311049716,1704889871350,-1080.53,0.00030684,2]
[311049717,1704889871360,-500.0,0.00030684,2]
[311049718,1704889871369,-776.49,0.00030684,2]
[311049719,1704889871382,-797.89,0.00030684,2]
[311049720,1704889871392,-500.0,0.00030684,2]
[311049721,1704889871407,-693.28,0.00030684,2]
[311049722,1704889871417,-500.0,0.00030684,2]
[311049723,1704889871426,-500.0,0.00030684,2]
[311049724,1704889871436,-938.28810242,0.00030684,2]
[311049725,1704889872344,-483.69189758,0.00030684,2]
[311049726,1704889872353,-1000.0,0.00030684,2]
[311049727,1704889872362,-500.0,0.00030684,2]
[311049728,1704889872372,-1059.23,0.00030684,2]
[311049729,1704889872381,-1078.63,0.00030684,2]
[311049730,1704889872390,-1018.85,0.00030684,2]
[311049731,1704889872403,-1239.08,0.00030684,2]
[311049732,1704889872412,-621.11,0.00030684,2]